bitfinex/quotes_BTCUSD_20230118
["timestamp","ask_amount","ask_price","bid_price","bid_amount"]
[1674018405163,2.29753433,21270.0,21267.0,0.033]
[1674018406492,2.29756872,21270.0,21267.0,0.033]
[1674018407543,2.29753439,21270.0,21267.0,0.033]
[1674018407798,1.92964108,21270.0,21267.0,0.033]
[1674018408066,2.29753439,21270.0,21267.0,0.033]
[1674018409266,2.46610696,21270.0,21267.0,0.033]
[1674018410043,2.29753439,21270.0,21267.0,0.033]
[1674018410780,1.92964108,21270.0,21267.0,0.033]
[1674018411322,2.29750055,21270.0,21267.0,0.033]
[1674018411852,1.92964108,21270.0,21267.0,0.033]
[1674018412112,1.81725936,21270.0,21267.0,0.033]
[1674018412379,1.70685936,21270.0,21267.0,0.033]
[1674018413440,1.81924108,21270.0,21267.0,0.033]
[1674018414960,1.70685936,21270.0,21267.0,0.033]
[1674018415244,1.81924108,21270.0,21267.0,0.033]
[1674018418087,2.18703181,21270.0,21267.0,0.033]
[1674018418577,2.35560438,21270.0,21267.0,0.033]
[1674018418836,2.35560438,21270.0,21267.0,0.03289154]
[1674018419621,2.18703181,21270.0,21267.0,0.03289154]
[1674018419874,2.35560438,21270.0,21267.0,0.03289154]
[1674018421370,0.11238172,21269.0,21267.0,0.03289154]
[1674018421692,0.470189,21268.0,21267.0,0.03289154]
[1674018422416,0.470189,21268.0,21265.0,0.46292537]
[1674018422929,0.471189,21268.0,21267.0,0.078]
[1674018423926,0.471189,21268.0,21265.0,0.53992537]
[1674018424177,0.470189,21268.0,21265.0,0.46292537]
[1674018424460,0.471189,21268.0,21267.0,0.078]
[1674018424718,0.470189,21268.0,21265.0,0.3503]
[1674018424967,0.471189,21268.0,21265.0,0.4273]
[1674018425253,0.471189,21268.0,21265.0,0.3503]
[1674018425514,0.473189,21268.0,21267.0,0.072]
[1674018425711,0.470189,21268.0,21265.0,0.3503]
[1674018426733,0.472189,21268.0,21265.0,0.4223]
[1674018427274,0.472189,21268.0,21265.0,0.53492537]
[1674018434749,0.002,21268.0,21265.0,0.70385546]
[1674018435015,0.002,21268.0,21266.0,0.11262537]
[1674018435280,0.472201,21268.0,21266.0,0.11262537]
[1674018435566,0.472201,21268.0,21265.0,0.70385546]
[1674018436303,0.470187,21269.0,21265.0,0.46292537]
[1674018436597,0.002,21268.0,21266.0,0.18462537]
[1674018436844,0.002,21268.0,21266.0,0.11262537]
[1674018437082,0.004,21268.0,21266.0,0.11262537]
[1674018437325,0.002,21268.0,21266.0,0.11262537]
[1674018437582,0.004,21268.0,21266.0,0.18462537]
[1674018437844,0.004,21268.0,21266.0,0.91727506]
[1674018438110,0.004,21268.0,21267.0,0.95794716]
[1674018438377,0.004,21268.0,21267.0,0.88263077]
[1674018438606,0.004,21268.0,21267.0,1.10794716]
[1674018438873,0.004,21268.0,21267.0,0.99537584]
[1674018439120,0.004,21268.0,21267.0,0.84537584]
[1674018439389,0.004,21268.0,21267.0,0.87737584]
[1674018439390,0.001,21268.0,21267.0,0.87737584]
[1674018440420,0.001,21268.0,21267.0,0.42307516]
[1674018440694,0.001,21268.0,21267.0,0.86422045]
[1674018440947,0.001,21268.0,21267.0,0.42307516]
[1674018441206,0.001,21268.0,21267.0,0.25414507]
[1674018442508,0.00088285,21268.0,21267.0,0.25414507]
[1674018445063,0.00088285,21268.0,21267.0,0.1414]
[1674018446571,0.00088285,21268.0,21267.0,0.25414507]
[1674018447077,0.00088285,21268.0,21267.0,0.1414]
[1674018447575,0.00088285,21268.0,21265.0,0.70055363]
[1674018447840,0.00088285,21268.0,21267.0,0.1097]
[1674018448590,0.45115197,21269.0,21267.0,0.1097]
[1674018448854,0.005,21268.0,21266.0,1.050635]
[1674018449108,0.45115197,21269.0,21267.0,0.1094]
[1674018449367,0.002,21268.0,21267.0,0.1254]
[1674018449638,0.48033296,21267.0,21265.0,0.62378152]
[1674018451507,0.48033296,21267.0,21265.0,0.66578152]
[1674018451756,0.48533296,21267.0,21265.0,0.66578152]
[1674018452301,0.48533296,21267.0,21265.0,0.55588152]
[1674018454106,0.005,21267.0,21265.0,0.55588152]
[1674018454368,0.005,21267.0,21265.0,1.40145391]
[1674018454633,0.005,21267.0,21266.0,0.42660008]
[1674018454913,0.005,21267.0,21266.0,0.89683408]
[1674018455457,0.005,21267.0,21266.0,1.36706808]
[1674018455713,1.003427,21270.0,21266.0,1.89238447]
[1674018455982,0.81270105,21270.0,21266.0,1.35074178]
[1674018456256,0.005,21267.0,21266.0,1.39274178]
[1674018456583,0.005,21267.0,21266.0,1.89640916]
[1674018456831,0.005,21267.0,21266.0,2.4780256]
[1674018457091,0.70290105,21270.0,21266.0,2.4360256]
[1674018457368,0.70290105,21270.0,21267.0,1.04818825]
[1674018457687,0.70290105,21270.0,21267.0,0.65392087]
[1674018457999,0.70290105,21270.0,21267.0,1.20181028]
[1674018458208,0.75190105,21270.0,21268.0,0.00017744]
[1674018458421,0.70290105,21270.0,21268.0,0.00017744]
[1674018458676,0.75190105,21270.0,21268.0,0.00017744]
[1674018459477,0.70290105,21270.0,21268.0,0.00017744]
[1674018459997,0.75190105,21270.0,21268.0,0.00417744]
[1674018460521,0.75190105,21270.0,21268.0,0.004]
[1674018471900,0.75181627,21270.0,21268.0,0.004]
[1674018474862,0.75181627,21270.0,21268.0,0.474188]
[1674018475364,0.75181627,21270.0,21268.0,0.004]
[1674018479023,0.75181627,21270.0,21268.0,0.1166428]
[1674018482228,0.75181627,21270.0,21268.0,0.28560628]
[1674018482229,0.75181627,21270.0,21268.0,0.1166428]
[1674018485053,0.75181627,21270.0,21268.0,0.004]
[1674018485308,0.75181627,21270.0,21268.0,0.1166428]
[1674018485618,0.75181627,21270.0,21268.0,0.004]
[1674018485881,0.75181627,21270.0,21268.0,0.1166428]
[1674018489854,0.75181627,21270.0,21268.0,0.28560628]
[1674018490111,0.75181627,21270.0,21268.0,0.1166428]
[1674018492926,0.75181627,21270.0,21268.0,0.07694894]
[1674018493730,0.75181627,21270.0,21267.0,1.27573211]
[1674018494944,0.70281627,21270.0,21267.0,1.27573211]
[1674018495162,0.75581627,21270.0,21267.0,1.27973211]
[1674018500915,0.75581627,21270.0,21268.0,0.43161253]
[1674018501150,0.75581627,21270.0,21268.0,1.12712364]
[1674018501395,0.75581627,21270.0,21268.0,0.69551111]
[1674018501885,0.75581627,21270.0,21268.0,0.63937803]
[1674018502121,0.70281627,21270.0,21268.0,0.63937803]
[1674018502376,0.75581627,21270.0,21268.0,0.64337803]
[1674018502884,0.75581627,21270.0,21269.0,0.11279348]
[1674018504380,0.75581627,21270.0,21268.0,0.75617151]
[1674018504615,0.75581627,21270.0,21269.0,0.11279348]
[1674018504884,0.75581627,21270.0,21269.0,0.11297091]
[1674018505109,0.70281627,21270.0,21269.0,0.11297091]
[1674018505373,0.70281627,21270.0,21268.0,0.75217151]
[1674018505621,0.75581627,21270.0,21269.0,0.004]
[1674018506630,0.70281627,21270.0,21268.0,0.75217151]
[1674018506891,0.75581627,21270.0,21268.0,0.75617151]
[1674018507631,0.70281627,21270.0,21268.0,0.75217151]
[1674018507894,0.75581627,21270.0,21269.0,0.004]
[1674018508137,0.70281627,21270.0,21268.0,0.75217151]
[1674018508409,0.70281627,21270.0,21268.0,0.75617151]
[1674018508410,0.75581627,21270.0,21268.0,0.75617151]
[1674018508672,0.70281627,21270.0,21268.0,0.75217151]
[1674018508918,0.75581627,21270.0,21269.0,0.004]
[1674018509162,0.70281627,21270.0,21268.0,0.75217151]
[1674018509386,0.75581627,21270.0,21268.0,0.75617151]
[1674018509635,0.75581627,21270.0,21269.0,0.11279348]
[1674018510427,0.70281627,21270.0,21269.0,0.11279348]
[1674018510674,0.75581627,21270.0,21269.0,0.11679348]
[1674018510927,0.75581627,21270.0,21269.0,0.004]
[1674018515615,0.75570046,21270.0,21269.0,0.004]
[1674018516638,0.75570046,21270.0,21269.0,0.11679348]
[1674018518960,0.75570046,21270.0,21269.0,0.004]
[1674018521235,0.75570046,21270.0,21269.0,0.11679348]
[1674018522453,0.34949941,21270.0,21269.0,0.11679348]
[1674018522702,0.34949941,21270.0,21269.0,0.28598551]
[1674018522940,0.34949941,21270.0,21269.0,0.72017157]
[1674018523189,0.34949941,21270.0,21269.0,0.60737809]
[1674018523446,0.34949941,21270.0,21269.0,0.8327032]
[1674018523732,0.34949941,21270.0,21269.0,2.66418197]
[1674018523988,0.34949941,21270.0,21269.0,2.43885686]
[1674018524256,0.34949941,21270.0,21269.0,2.15742657]
[1674018524521,0.29649941,21270.0,21269.0,2.26302657]
[1674018524787,0.30049941,21270.0,21269.0,2.30602657]
[1674018525040,0.30049941,21270.0,21269.0,2.21966285]
[1674018525597,0.49122536,21270.0,21269.0,1.09422]
[1674018525869,0.30049941,21270.0,21269.0,1.75179274]
[1674018526142,0.30049941,21270.0,21269.0,1.98933536]
[1674018526384,0.30049941,21270.0,21269.0,1.54773001]
[1674018526647,0.30049941,21270.0,21269.0,1.87658571]
[1674018526937,0.30049941,21270.0,21269.0,1.59475906]
[1674018527207,0.30049941,21270.0,21269.0,2.10205313]
[1674018527479,0.30049941,21270.0,21269.0,1.98932789]
[1674018527756,0.69460342,21270.0,21269.0,0.043]
[1674018529306,0.30049941,21270.0,21269.0,0.62588728]
[1674018530529,0.30049941,21270.0,21269.0,0.513167]
[1674018530801,0.30049941,21270.0,21269.0,0.62588728]
[1674018537241,0.30049941,21270.0,21269.0,0.513167]
[1674018537705,0.30049941,21270.0,21269.0,0.62588728]
[1674018538478,0.30049941,21270.0,21269.0,0.513167]
[1674018539265,0.30049941,21270.0,21269.0,0.62588728]
[1674018540313,0.30049941,21270.0,21269.0,0.79498886]
[1674018540503,0.30049941,21270.0,21269.0,0.62588728]
[1674018543785,0.30049941,21270.0,21269.0,0.043]
[1674018545034,0.30049941,21270.0,21269.0,0.15572028]
[1674018545301,0.96118826,21270.0,21269.0,0.15572028]
[1674018545557,1.35100731,21270.0,21269.0,0.043]
[1674018545817,0.77046231,21270.0,21269.0,0.043]
[1674018546339,0.29649941,21270.0,21268.0,0.11272028]
[1674018546598,0.30049941,21270.0,21269.0,0.043]
[1674018547643,0.30049941,21270.0,21268.0,0.58290828]
[1674018547899,0.30149941,21270.0,21269.0,0.04]
[1674018553620,0.30149941,21270.0,21269.0,0.510167]
[1674018553937,0.4701,21273.0,21269.0,0.79198886]
[1674018554194,1.40608141,21274.0,21270.0,0.14505739]
[1674018554441,1.40608141,21274.0,21271.0,0.03495739]
[1674018554442,0.93601341,21274.0,21271.0,0.03495739]
[1674018554971,0.004,21273.0,21270.0,0.69295628]
[1674018555496,0.004,21273.0,21270.0,1.16310128]
[1674018555752,0.05163336,21274.0,21271.0,0.2634]
[1674018556004,0.00463336,21274.0,21272.0,0.470101]
[1674018556316,0.00463336,21274.0,21272.0,0.58282128]
[1674018556317,0.002,21273.0,21272.0,0.58282128]
[1674018556552,0.002,21273.0,21272.0,1.44182386]
[1674018556805,0.002,21273.0,21272.0,2.70533828]
[1674018557068,0.00463336,21274.0,21272.0,2.92846352]
[1674018557389,0.04863336,21274.0,21273.0,1.91585052]
[1674018557591,0.04863336,21274.0,21273.0,2.85600852]
[1674018557592,0.00463336,21274.0,21273.0,2.85600852]
[1674018558091,0.00463336,21274.0,21273.0,2.6870927]
[1674018558337,0.00863336,21274.0,21273.0,2.6870927]
[1674018558618,0.00863336,21274.0,21273.0,2.73412175]
[1674018558903,0.00863336,21274.0,21273.0,2.78212175]
[1674018558904,0.01263336,21274.0,21273.0,2.78212175]
[1674018559498,0.01263336,21274.0,21273.0,2.95090396]
[1674018559726,0.01263336,21274.0,21273.0,2.83795721]
[1674018559973,0.01263336,21274.0,21273.0,2.95090396]
[1674018560565,0.01263336,21274.0,21273.0,2.89252175]
[1674018561031,0.01263336,21274.0,21273.0,3.17434857]
[1674018561289,0.00479138,21276.0,21274.0,0.16494972]
[1674018561570,0.00479138,21276.0,21275.0,2.00035462]
[1674018561817,0.00479138,21276.0,21275.0,2.30035462]
[1674018562074,0.00479138,21276.0,21275.0,2.41278375]
[1674018562345,0.00779138,21276.0,21275.0,2.52318375]
[1674018562597,0.00779138,21276.0,21275.0,3.18594786]
[1674018563129,0.00779138,21276.0,21275.0,2.52318375]
[1674018563365,0.00779138,21276.0,21275.0,3.89592188]
[1674018563627,0.00779138,21276.0,21275.0,3.2885128]
[1674018563902,0.00779138,21276.0,21275.0,3.4571565]
[1674018564127,0.00779138,21276.0,21275.0,3.95089721]
[1674018564466,0.00779138,21276.0,21275.0,3.29141628]
[1674018564941,0.00779138,21276.0,21275.0,3.4044544]
[1674018565195,0.00779138,21276.0,21275.0,3.2358107]
[1674018565448,0.00779138,21276.0,21275.0,3.29096444]
[1674018565943,0.00779138,21276.0,21275.0,3.17872497]
[1674018566199,0.00779138,21276.0,21275.0,2.62582368]
[1674018566463,0.00779138,21276.0,21275.0,3.27140689]
[1674018566732,0.00779138,21276.0,21275.0,3.78893309]
[1674018567213,0.00779138,21276.0,21275.0,3.10302537]
[1674018567461,0.00779138,21276.0,21275.0,2.99078536]
[1674018567711,0.00779138,21276.0,21275.0,3.10302537]
[1674018570289,0.00779138,21276.0,21275.0,3.27140689]
[1674018570550,0.00479138,21276.0,21275.0,3.04802537]
[1674018571861,0.0054484,21277.0,21276.0,0.15418703]
[1674018572112,0.0054484,21277.0,21276.0,2.68403991]
[1674018572409,0.0054484,21277.0,21276.0,2.73106896]
[1674018573199,0.0054484,21277.0,21276.0,2.70799339]
[1674018573457,0.0054484,21277.0,21276.0,2.33854377]
[1674018574228,0.0054484,21277.0,21276.0,2.70799339]
[1674018574524,0.0054484,21277.0,21276.0,2.82006896]
[1674018575227,0.0054484,21277.0,21276.0,2.70799339]
[1674018577275,0.0054484,21277.0,21276.0,1.92824377]
[1674018577529,0.0054484,21277.0,21276.0,1.66784377]
[1674018577802,0.0054484,21277.0,21276.0,2.03951934]
[1674018578062,0.0054484,21277.0,21276.0,2.29689339]
[1674018578659,0.0054484,21277.0,21276.0,2.70896896]
[1674018578915,0.0054484,21277.0,21276.0,3.51170365]
[1674018579425,0.0054484,21277.0,21276.0,3.45671381]
[1674018579971,0.0054484,21277.0,21276.0,3.73854063]
[1674018580479,0.0054484,21277.0,21276.0,4.06101573]
[1674018580741,0.0054484,21277.0,21276.0,3.33029628]
[1674018581006,0.0054484,21277.0,21276.0,3.21831573]
[1674018581265,0.00571726,21281.0,21279.0,0.01342753]
[1674018581525,0.00571726,21281.0,21280.0,1.409772]
[1674018582876,0.00571726,21281.0,21280.0,1.798772]
[1674018583129,0.00571726,21281.0,21280.0,1.498772]
[1674018583354,0.00571726,21281.0,21280.0,1.798772]
[1674018583934,0.00649503,21282.0,21280.0,1.798772]
[1674018584671,0.00649503,21282.0,21280.0,1.498772]
[1674018591827,0.00649503,21282.0,21281.0,0.3]
[1674018592123,0.00649503,21282.0,21281.0,0.939804]
[1674018593640,0.00649503,21282.0,21281.0,1.029804]
[1674018594128,0.00649503,21282.0,21281.0,1.329804]
[1674018595913,0.00649503,21282.0,21281.0,1.44177451]
[1674018597177,0.00649503,21282.0,21281.0,2.13643545]
[1674018597434,0.00649503,21282.0,21281.0,1.83643545]
[1674018597722,0.00649503,21282.0,21281.0,1.14177451]
[1674018598946,0.00649503,21282.0,21281.0,1.38177451]
[1674018599209,0.00649503,21282.0,21281.0,1.84974368]
[1674018600004,0.00649503,21282.0,21281.0,2.37667157]
[1674018601270,0.00649503,21282.0,21281.0,2.26470106]
[1674018602296,0.00649503,21282.0,21281.0,2.49016831]
[1674018602534,0.00649503,21282.0,21281.0,1.96470106]
[1674018602846,0.00649503,21282.0,21281.0,2.07729283]
[1674018603082,0.00649503,21282.0,21281.0,1.96470106]
[1674018603353,0.00649503,21282.0,21281.0,2.49016831]
[1674018604420,0.00649503,21282.0,21281.0,2.19016831]
[1674018604632,0.00649503,21282.0,21281.0,2.07732524]
[1674018604907,0.00649503,21282.0,21281.0,1.55039735]
[1674018605164,0.00649503,21282.0,21281.0,2.07812741]
[1674018605935,0.00649503,21282.0,21281.0,2.26550323]
[1674018606195,0.00649503,21282.0,21281.0,1.96550323]
[1674018606982,0.00649503,21282.0,21281.0,2.49097048]
[1674018607245,0.00649503,21282.0,21281.0,2.19097048]
[1674018607502,0.00637835,21282.0,21281.0,2.49097048]
[1674018609088,0.00637835,21282.0,21281.0,1.96550323]
[1674018609368,0.00637835,21282.0,21281.0,2.07845034]
[1674018610702,0.00637835,21282.0,21281.0,2.07846712]
[1674018611104,0.00637835,21282.0,21281.0,1.55041226]
[1674018611107,0.00637835,21282.0,21281.0,2.07979314]
[1674018611331,0.00637835,21282.0,21281.0,1.55041226]
[1674018611587,0.00637835,21282.0,21281.0,2.07979049]
[1674018612011,0.00637835,21282.0,21281.0,1.9671514]
[1674018612750,0.00637835,21282.0,21281.0,2.49261865]
[1674018613015,0.00637835,21282.0,21281.0,2.6064763]
[1674018613991,1e-08,21282.0,21281.0,2.6064763]
[1674018614180,1e-08,21282.0,21281.0,2.32464948]
[1674018614423,1e-08,21282.0,21281.0,2.6064763]
[1674018615900,1e-08,21282.0,21281.0,2.38100905]
[1674018617191,1e-08,21282.0,21281.0,2.3663565]
[1674018618793,1e-08,21282.0,21281.0,2.08452968]
[1674018619748,1e-08,21282.0,21281.0,2.32452968]
[1674018620481,1e-08,21282.0,21281.0,2.6063565]
[1674018620700,1e-08,21282.0,21281.0,2.32452968]
[1674018620937,1e-08,21282.0,21281.0,2.6063565]
[1674018624073,1e-08,21282.0,21281.0,2.38100905]
[1674018625055,1e-08,21282.0,21281.0,2.60630849]
[1674018625316,1e-08,21282.0,21281.0,2.38100905]
[1674018626410,1e-08,21282.0,21281.0,2.85821074]
[1674018626905,1e-08,21282.0,21281.0,3.33806036]
[1674018627620,1e-08,21282.0,21281.0,3.52613554]
[1674018628094,1e-08,21282.0,21281.0,3.80775264]
[1674018629036,1e-08,21282.0,21281.0,3.52613554]
[1674018630881,0.00649503,21283.0,21282.0,5.999e-05]
[1674018631151,0.00649503,21283.0,21282.0,2.31100153]
[1674018632620,0.00649503,21283.0,21282.0,2.40300153]
[1674018633125,0.00649503,21283.0,21282.0,2.62826089]
[1674018633376,0.00649503,21283.0,21282.0,2.6282009]
[1674018634387,0.00649503,21283.0,21282.0,2.34659759]
[1674018634635,0.00649503,21283.0,21282.0,2.6282009]
[1674018637168,0.00649503,21283.0,21282.0,2.34659759]
[1674018637919,0.00649503,21283.0,21282.0,2.51554961]
[1674018638174,0.00649503,21283.0,21282.0,2.34659759]
[1674018638677,0.00649503,21283.0,21282.0,2.6282009]
[1674018639159,0.00649503,21283.0,21282.0,2.40294154]
[1674018641177,0.00649503,21283.0,21282.0,2.88014323]
[1674018642206,0.00649503,21283.0,21282.0,2.59853992]
[1674018642763,0.00649503,21283.0,21282.0,2.96798954]
[1674018642991,0.00804977,21285.0,21283.0,0.15693166]
[1674018643231,0.00804977,21285.0,21284.0,2.10865762]
[1674018643485,0.00804977,21285.0,21284.0,2.63803585]
[1674018643766,0.00804977,21285.0,21284.0,2.93803585]
[1674018644072,0.00613502,21286.0,21285.0,0.15]
[1674018644073,1e-08,21286.0,21285.0,0.15]
[1674018644230,1e-08,21286.0,21285.0,0.81944962]
[1674018644451,1e-08,21286.0,21285.0,3.01585915]
[1674018644698,1e-08,21286.0,21285.0,2.73435732]
[1674018645186,1e-08,21286.0,21285.0,2.2734351]
[1674018645457,1e-08,21286.0,21285.0,1.86303666]
[1674018645711,1e-08,21286.0,21285.0,1.72983519]
[1674018646188,1e-08,21286.0,21285.0,2.25503666]
[1674018646969,1e-08,21286.0,21285.0,2.14236827]
[1674018647495,0.00113503,21288.0,21285.0,2.14236827]
[1674018647753,0.00113503,21288.0,21285.0,1.61299004]
[1674018648016,0.00113503,21288.0,21285.0,1.31299004]
[1674018648477,0.00113503,21288.0,21285.0,1.22099004]
[1674018648737,0.00113503,21288.0,21285.0,1.31399004]
[1674018649022,0.00113503,21288.0,21286.0,0.15]
[1674018649280,0.00113503,21288.0,21287.0,0.93954]
[1674018649524,0.00113503,21288.0,21287.0,0.68265122]
[1674018652507,0.00113503,21288.0,21287.0,0.98265122]
[1674018652749,0.00113503,21288.0,21287.0,1.26401326]
[1674018652998,0.00113503,21288.0,21287.0,1.0951843]
[1674018653252,0.00113503,21288.0,21287.0,1.41401326]
[1674018653742,0.00113503,21288.0,21287.0,1.96896051]
[1674018654257,0.00113503,21288.0,21287.0,1.41401326]
[1674018654509,0.00113503,21288.0,21287.0,1.52411326]
[1674018654762,0.00113503,21288.0,21287.0,2.56189295]
[1674018655272,0.00113503,21288.0,21287.0,2.19172349]
[1674018656037,0.00113503,21288.0,21287.0,2.28372349]
[1674018656560,0.00113503,21288.0,21287.0,2.17095864]
[1674018656828,0.00113503,21288.0,21287.0,2.05852202]
[1674018657198,0.00113503,21288.0,21287.0,2.02096001]
[1674018657437,0.00113503,21288.0,21287.0,1.18708921]
[1674018657647,0.00113503,21288.0,21287.0,0.88708921]
[1674018657871,0.00113503,21288.0,21287.0,1.18708921]
[1674018658318,0.00113503,21288.0,21287.0,1.07465122]
[1674018658533,0.00113503,21288.0,21287.0,1.22465122]
[1674018659265,0.00113503,21288.0,21287.0,1.33708921]
[1674018659918,0.00113503,21288.0,21287.0,1.07465122]
[1674018661414,0.00113503,21288.0,21287.0,0.77465122]
[1674018661662,0.00113503,21288.0,21287.0,1.91085191]
[1674018662135,0.00113503,21288.0,21287.0,1.91085203]
[1674018663078,0.00113503,21288.0,21287.0,1.79841404]
[1674018663327,0.00113503,21288.0,21287.0,1.91083993]
[1674018663806,0.00113503,21288.0,21287.0,1.18707711]
[1674018666558,0.00113503,21288.0,21287.0,1.8142788]
[1674018666769,0.00113503,21288.0,21287.0,2.5380363]
[1674018667061,0.00113503,21288.0,21287.0,2.42561041]
[1674018667304,0.00113503,21288.0,21287.0,2.53803848]
[1674018668268,0.00113503,21288.0,21287.0,2.53803435]
[1674018668771,0.00113503,21288.0,21287.0,2.42561041]
[1674018669478,0.00113503,21288.0,21287.0,2.53802728]
[1674018669710,0.00323191,21290.0,21288.0,0.15214068]
[1674018669950,0.00323191,21290.0,21289.0,1.80009135]
[1674018670202,0.00323191,21290.0,21289.0,2.65501989]
[1674018670706,0.00323191,21290.0,21289.0,2.54261455]
[1674018670965,0.00323191,21290.0,21289.0,1.93148865]
[1674018671203,0.00323191,21290.0,21289.0,2.02348865]
[1674018671479,0.00323191,21290.0,21289.0,1.911078]
[1674018671705,0.00323191,21290.0,21289.0,1.501178]
[1674018672431,0.19395786,21290.0,21289.0,0.092]
[1674018672723,0.11363191,21290.0,21289.0,0.092]
[1674018674232,0.22403191,21290.0,21289.0,0.092]
[1674018674716,0.65630491,21290.0,21289.0,0.092]
[1674018675235,1.12600891,21290.0,21289.0,0.092]
[1674018676241,1.01560891,21290.0,21289.0,0.092]
[1674018676475,0.54590491,21290.0,21289.0,0.092]
[1674018677705,0.43550491,21290.0,21289.0,0.092]
[1674018677937,0.11363191,21290.0,21289.0,0.092]
[1674018681331,0.11363191,21290.0,21289.0,0.561726]
[1674018681554,0.11363191,21290.0,21289.0,0.801726]
[1674018682347,0.00323191,21290.0,21289.0,0.332]
[1674018685755,0.00323191,21290.0,21289.0,0.801726]
[1674018685987,0.00323191,21290.0,21289.0,0.11413631]
[1674018689833,0.00323191,21290.0,21289.0,0.58386231]
[1674018690264,0.00323191,21290.0,21289.0,0.69627296]
[1674018690521,0.00323191,21290.0,21289.0,0.86488097]
[1674018690837,0.01223191,21290.0,21289.0,0.69627296]
[1674018691040,0.00323191,21290.0,21289.0,0.69627296]
[1674018691293,0.01223191,21290.0,21289.0,0.69627296]
[1674018692281,0.01223191,21290.0,21289.0,0.58213665]
[1674018692541,0.00323191,21290.0,21289.0,0.58213665]
[1674018692826,0.01223191,21290.0,21289.0,0.58213665]
[1674018693940,0.01223191,21290.0,21289.0,1.3056628]
[1674018694194,0.01223191,21290.0,21289.0,1.22047066]
[1674018695229,0.01223191,21290.0,21289.0,1.05186265]
[1674018698021,0.01223191,21290.0,21289.0,1.22047066]
[1674018699048,0.01223191,21290.0,21289.0,1.77539244]
[1674018699293,0.01223191,21290.0,21289.0,1.22047066]
[1674018700117,0.01223191,21290.0,21289.0,1.77539194]
[1674018700337,0.00979211,21291.0,21289.0,1.66298129]
[1674018700606,0.00979211,21291.0,21290.0,0.11262197]
[1674018700866,0.00979211,21291.0,21289.0,0.75095598]
[1674018701143,0.00979211,21291.0,21289.0,1.22066298]
[1674018701684,0.00979211,21291.0,21289.0,1.36866298]
[1674018701685,0.01279211,21291.0,21289.0,1.36866298]
[1674018705220,0.01279211,21291.0,21290.0,0.11262197]
[1674018705484,0.01279211,21291.0,21290.0,1.22063798]
[1674018705767,0.01279211,21291.0,21290.0,1.77552881]
[1674018706342,0.01279211,21291.0,21290.0,1.22063798]
[1674018706645,0.01279211,21291.0,21290.0,1.77552697]
[1674018707153,0.00479211,21291.0,21290.0,1.77552697]
[1674018707664,0.01279211,21291.0,21290.0,1.22763798]
[1674018709342,0.01279211,21291.0,21290.0,1.05902997]
[1674018710101,0.01279211,21291.0,21290.0,0.58932597]
[1674018710365,0.01279211,21291.0,21290.0,0.476704]
[1674018711449,0.01279211,21291.0,21290.0,0.58932597]
[1674018714305,0.01279211,21291.0,21290.0,0.476704]
[1674018714556,0.01279211,21291.0,21290.0,0.58932597]
[1674018715077,0.01279211,21291.0,21290.0,0.476704]
[1674018715329,0.01279211,21291.0,21290.0,0.007]
[1674018717091,0.01279211,21291.0,21290.0,0.476704]
[1674018717622,0.01279211,21291.0,21290.0,0.946408]
[1674018717902,0.01279211,21291.0,21290.0,1.05902997]
[1674018718902,0.01279211,21291.0,21290.0,0.58932597]
[1674018720687,0.01279211,21291.0,21290.0,0.75793398]
[1674018720930,0.01279211,21291.0,21290.0,2.08252105]
[1674018721190,0.01279211,21291.0,21290.0,1.72610175]
[1674018721439,0.01279211,21291.0,21290.0,1.89499869]
[1674018721729,0.01279211,21291.0,21290.0,2.02610175]
[1674018723018,0.01279211,21291.0,21290.0,2.19497479]
[1674018723298,0.01279211,21291.0,21290.0,2.19497487]
[1674018724074,0.01279211,21291.0,21290.0,2.30760358]
[1674018724306,0.01279211,21291.0,21290.0,2.02610175]
[1674018724580,0.01272125,21291.0,21290.0,2.02610175]
[1674018725083,0.01272125,21291.0,21290.0,2.30760358]
[1674018725342,0.01272125,21291.0,21290.0,2.0827929]
[1674018725889,0.01272125,21291.0,21290.0,2.30793853]
[1674018726391,0.01272125,21291.0,21290.0,2.0264367]
[1674018726890,0.01272125,21291.0,21290.0,2.30793853]
[1674018728670,0.01272125,21291.0,21290.0,2.0827929]
[1674018729217,0.01272125,21291.0,21290.0,2.30790077]
[1674018729666,0.01272125,21291.0,21290.0,2.0827929]
[1674018729916,0.01272125,21291.0,21290.0,1.7827929]
[1674018730172,1e-08,21292.0,21290.0,1.72642444]
[1674018730429,1e-08,21292.0,21291.0,0.11256657]
[1674018730692,1e-08,21292.0,21291.0,0.58224857]
[1674018731196,1e-08,21292.0,21291.0,1.30594779]
[1674018731460,0.00800001,21292.0,21291.0,1.3209507]
[1674018731751,0.00800001,21292.0,21291.0,1.7906327]
[1674018732055,0.00800001,21292.0,21291.0,1.06693057]
[1674018732305,0.00800001,21292.0,21291.0,1.23578043]
[1674018732916,0.00800001,21292.0,21291.0,1.79063354]
[1674018733166,0.00800001,21292.0,21291.0,1.90320034]
[1674018733474,0.00800001,21292.0,21291.0,1.67806697]
[1674018733738,0.00800001,21292.0,21291.0,2.20320034]
[1674018733999,0.00800001,21292.0,21291.0,2.20321018]
[1674018734250,0.00800001,21292.0,21291.0,1.90320978]
[1674018734538,0.00800001,21292.0,21291.0,1.90319019]
[1674018734735,0.00800001,21292.0,21291.0,1.90319202]
[1674018735031,0.58957389,21294.0,21291.0,1.90319202]
[1674018735296,0.58957389,21294.0,21292.0,0.11256124]
[1674018735593,0.58957389,21294.0,21292.0,0.58220624]
[1674018735795,0.1103,21294.0,21292.0,0.58220624]
[1674018736053,0.1103,21294.0,21292.0,1.05186524]
[1674018736821,0.1473,21294.0,21292.0,1.05186524]
[1674018737330,0.1473,21294.0,21292.0,0.939304]
[1674018737580,0.1473,21294.0,21292.0,1.05186524]
[1674018737836,0.1103,21294.0,21292.0,1.05186524]
[1674018738105,0.1793,21294.0,21292.0,1.05386524]
[1674018739387,0.1793,21294.0,21292.0,1.22270678]
[1674018739927,0.069,21294.0,21292.0,1.22270678]
[1674018740661,0.069,21294.0,21293.0,0.83620303]
[1674018740922,0.069,21294.0,21293.0,1.77547703]
[1674018741177,0.0109245,21295.0,21293.0,1.66291579]
[1674018741424,0.0109245,21295.0,21294.0,0.11253558]
[1674018741689,0.0109245,21295.0,21294.0,0.43137712]
[1674018741964,0.0109245,21295.0,21294.0,1.22060712]
[1674018742200,0.0109245,21295.0,21294.0,1.77538393]
[1674018742502,0.0179245,21295.0,21294.0,1.05176558]
[1674018742712,0.0109245,21295.0,21294.0,1.05176558]
[1674018742969,0.0179245,21295.0,21294.0,1.07376558]
[1674018743486,0.0179245,21295.0,21294.0,1.94493559]
[1674018743757,0.0179245,21295.0,21294.0,2.05742296]
[1674018744242,0.0179245,21295.0,21294.0,1.80261734]